fUST/lending_fUST_20250704
["ID","MTS","AMOUNT","RATE_DAILY","PERIOD"]
[369414085,1751568639643,-460.0,0.00016438,2]
[369414087,1751568639653,-460.0,0.00016438,2]
[369414090,1751568639663,-460.0,0.00016438,2]
[369414091,1751568639672,-490.6270276,0.00016438,2]
[369414093,1751568639683,-460.0,0.00016438,2]
[369414096,1751568639693,-460.0,0.00016438,2]
[369414098,1751568639706,-460.0,0.00016438,2]
[369414100,1751568639715,-460.0,0.00016438,2]
[369414101,1751568639724,-2197.05,0.00016438,2]
[369414103,1751568639732,-460.0,0.00016438,2]
[369414105,1751568639742,-460.0,0.00016438,2]
[369414107,1751568639751,-460.0,0.00016438,2]
[369414109,1751568639761,-460.0,0.00016438,2]
[369414111,1751568639770,-460.0,0.00016438,2]
[369414113,1751568639780,-460.0,0.00016438,2]
[369414115,1751568639789,-460.0,0.00016438,2]
[369414117,1751568639798,-460.0,0.00016438,2]
[369414119,1751568639807,-963.57,0.00016438,2]
[369414121,1751568639816,-460.0,0.00016438,2]
[369414123,1751568639825,-460.0,0.00016438,2]
[369414125,1751568639834,-460.0,0.00016438,2]
[369414127,1751568639843,-460.0,0.00016438,2]
[369414129,1751568639852,-460.0,0.00016438,2]
[369414131,1751568639861,-460.0,0.00016438,2]
[369414133,1751568639871,-460.0,0.00016438,2]
[369414135,1751568639880,-2407.78,0.00016438,2]
[369414137,1751568639889,-460.0,0.00016438,2]
[369414139,1751568639898,-529.14,0.00016438,2]
[369414141,1751568639907,-460.0,0.00016438,2]
[369414143,1751568639917,-460.0,0.00016438,2]
[369414145,1751568639926,-460.0,0.00016438,2]
[369414147,1751568639935,-460.0,0.00016438,2]
[369414149,1751568639945,-463.41329112,0.00016438,2]
[369414151,1751568639957,-460.0,0.00016438,2]
[369414153,1751568639967,-460.0,0.00016438,2]
[369414155,1751568639976,-521.68,0.00016438,2]
[369414157,1751568639986,-460.0,0.00016438,2]
[369414159,1751568639996,-460.0,0.00016438,2]
[369414161,1751568640006,-460.0,0.00016438,2]
[369414163,1751568640015,-460.0,0.00016438,2]
[369414165,1751568640024,-460.0,0.00016438,2]
[369414167,1751568640033,-460.0,0.00016438,2]
[369414169,1751568640043,-562.13,0.00016438,2]
[369414171,1751568640052,-1121.9,0.00016438,2]
[369414173,1751568640061,-523.79476819,0.00016438,2]
[369414175,1751568640071,-460.0,0.00016438,2]
[369414177,1751568640081,-671.58,0.00016438,2]
[369414179,1751568640091,-460.0,0.00016438,2]
[369414181,1751568640100,-460.0,0.00016438,2]
[369414183,1751568640109,-460.0,0.00016438,2]
[369414185,1751568640119,-460.0,0.00016438,2]
[369414187,1751568640128,-460.0,0.00016438,2]
[369414189,1751568640137,-460.0,0.00016438,2]
[369414191,1751568640146,-460.0,0.00016438,2]
[369414193,1751568640155,-460.0,0.00016438,2]
[369414195,1751568640165,-460.0,0.00016438,2]
[369414197,1751568640174,-218.98030441,0.00016438,2]
[369414199,1751568640183,-549.22,0.00016438,2]
[369414201,1751568640193,-460.0,0.00016438,2]
[369414203,1751568640208,-460.0,0.00016438,2]
[369414206,1751568640217,-460.0,0.00016438,2]
[369414208,1751568640227,-460.0,0.00016438,2]
[369414210,1751568640237,-460.0,0.00016438,2]
[369414212,1751568640246,-460.0,0.00016438,2]
[369414214,1751568640255,-460.0,0.00016438,2]
[369414216,1751568640265,-976.22,0.00016438,2]
[369414218,1751568640275,-460.0,0.00016438,2]
[369414220,1751568640284,-460.0,0.00016438,2]
[369414222,1751568640295,-460.0,0.00016438,2]
[369414224,1751568640304,-620.74,0.00016438,2]
[369414242,1751568640477,-1005.25,0.00016438,2]
[369414244,1751568640491,-460.0,0.00016438,2]
[369414245,1751568640502,-460.0,0.00016438,2]
[369414247,1751568640511,-460.0,0.00016438,2]
[369414249,1751568640521,-460.0,0.00016438,2]
[369414251,1751568640530,-2572.74,0.00016438,2]
[369414252,1751568640540,-266.06,0.00016438,2]
[369414254,1751568640550,-460.0,0.00016438,2]
[369414256,1751568640560,-460.0,0.00016438,2]
[369414258,1751568640569,-460.0,0.00016438,2]
[369414260,1751568640578,-460.0,0.00016438,2]
[369414261,1751568640587,-460.0,0.00016438,2]
[369414263,1751568640598,-460.0,0.00016438,2]
[369414265,1751568640607,-460.0,0.00016438,2]
[369414267,1751568640617,-460.0,0.00016438,2]
[369414268,1751568640626,-460.0,0.00016438,2]
[369414270,1751568640635,-460.0,0.00016438,2]
[369414272,1751568640646,-460.0,0.00016712,2]
[369414274,1751568640655,-460.0,0.00016712,2]
[369414275,1751568640664,-460.0,0.00016712,2]
[369414277,1751568640673,-460.0,0.00016712,2]
[369414279,1751568640686,-507.91,0.00016712,2]
[369414281,1751568640695,-506.90103555,0.00016712,2]
[369414282,1751568640705,-460.0,0.00016712,2]
[369414284,1751568640714,-460.0,0.00016712,2]
[369414286,1751568640724,-460.0,0.00016712,2]
[369414287,1751568640735,-268.67898299,0.00016712,2]
[369414289,1751568640744,-460.0,0.00016712,2]
[369414291,1751568640754,-460.0,0.00016712,2]
[369414293,1751568640763,-313.98,0.00016712,2]
[369414294,1751568640773,-460.0,0.00016712,2]
[369414296,1751568640783,-460.0,0.00016712,2]
[369414298,1751568640792,-460.0,0.00016712,2]
[369414299,1751568640801,-460.0,0.00016712,2]
[369414301,1751568640811,-460.0,0.00016712,2]
[369414303,1751568640821,-460.0,0.00016712,2]
[369414305,1751568640830,-460.0,0.00016712,2]
[369414307,1751568640839,-460.0,0.00016712,2]
[369414309,1751568640848,-460.0,0.00016712,2]
[369414310,1751568640857,-460.0,0.00016712,2]
[369414312,1751568640867,-460.0,0.00016712,2]
[369414314,1751568640877,-460.0,0.00016712,2]
[369414316,1751568640886,-460.0,0.00016712,2]
[369414318,1751568640896,-460.0,0.00016712,2]
[369414319,1751568640905,-460.0,0.00016712,2]
[369414321,1751568640914,-461.36588459,0.00016712,2]
[369414323,1751568640923,-460.0,0.00016712,2]
[369414325,1751568640933,-460.0,0.00016712,2]
[369414326,1751568640942,-460.0,0.00016712,2]
[369414328,1751568640951,-460.0,0.00016712,2]
[369414330,1751568640960,-460.0,0.00016712,2]
[369414332,1751568640970,-460.0,0.00016712,2]
[369414334,1751568640979,-460.0,0.00016712,2]
[369414335,1751568640988,-460.0,0.00016712,2]
[369414337,1751568640998,-460.0,0.00016712,2]
[369414339,1751568641007,-460.0,0.00016712,2]
[369414341,1751568641016,-460.0,0.00016712,2]
[369414343,1751568641025,-460.0,0.00016712,2]
[369414344,1751568641034,-460.0,0.00016712,2]
[369414346,1751568641043,-460.0,0.00016712,2]
[369414348,1751568641052,-460.0,0.00016712,2]
[369414350,1751568641061,-558.2,0.00016712,2]
[369414352,1751568641070,-460.0,0.00016712,2]
[369414353,1751568641079,-665.21,0.00016712,2]
[369414355,1751568641089,-460.0,0.00016712,2]
[369414356,1751568641099,-1170.6716135,0.00016712,2]
[369414359,1751568641115,-562.8183865,0.00016712,2]
[369414361,1751568641124,-460.0,0.00016712,2]
[369414362,1751568641133,-1778.48,0.00016712,2]
[369414364,1751568641142,-263.55252331,0.00016712,2]
[369414366,1751568641151,-460.0,0.00016712,2]
[369414368,1751568641160,-460.0,0.00016712,2]
[369414370,1751568641170,-460.0,0.00016712,2]
[369414371,1751568641179,-460.0,0.00016712,2]
[369414373,1751568641188,-460.0,0.00016712,2]
[369414375,1751568641197,-460.0,0.00016712,2]
[369414377,1751568641207,-460.0,0.00016712,2]
[369414379,1751568641216,-366.64,0.00016712,2]
[369414381,1751568641225,-460.0,0.00016712,2]
[369414382,1751568641235,-460.0,0.00016712,2]
[369414384,1751568641244,-460.0,0.00016712,2]
[369414386,1751568641253,-583.06,0.00016712,2]
[369414388,1751568641263,-460.0,0.00016712,2]
[369414389,1751568641272,-460.0,0.00016712,2]
[369414391,1751568641282,-1713.0,0.00016712,2]
[369414393,1751568641292,-460.0,0.00016712,2]
[369414395,1751568641302,-1238.44,0.00016712,2]
[369414397,1751568641312,-460.0,0.00016712,2]
[369414399,1751568641321,-460.0,0.00016712,2]
[369414401,1751568641330,-460.0,0.00016712,2]
[369414402,1751568641339,-460.0,0.00016712,2]
[369414404,1751568641349,-460.0,0.00016712,2]
[369414406,1751568641358,-460.0,0.00016712,2]
[369414408,1751568641368,-389.82,0.00016712,2]
[369414410,1751568641377,-1617.81,0.00016712,2]
[369414411,1751568641387,-495.0,0.00016712,2]
[369414413,1751568641396,-493.75,0.00016712,2]
[369414415,1751568641405,-460.0,0.00016712,2]
[369414417,1751568641415,-460.0,0.00016712,2]
[369414419,1751568641424,-460.0,0.00016712,2]
[369414420,1751568641433,-2197.05,0.00016712,2]
[369414422,1751568641443,-460.0,0.00016712,2]
[369414424,1751568641452,-460.0,0.00016712,2]
[369414426,1751568641461,-460.0,0.00016712,2]
[369414428,1751568641471,-460.0,0.00016712,2]
[369414430,1751568641481,-460.0,0.00016712,2]
[369414431,1751568641490,-963.57,0.00016712,2]
[369414433,1751568641500,-460.0,0.00016712,2]
[369414435,1751568641510,-504.45,0.00016712,2]
[369414437,1751568641519,-2407.78,0.00016712,2]
[369414439,1751568641529,-460.0,0.00016712,2]
[369414441,1751568641538,-529.14,0.00016712,2]
[369414442,1751568641548,-460.0,0.00016712,2]
[369414444,1751568641557,-460.0,0.00016712,2]
[369414446,1751568641567,-460.0,0.00016712,2]
[369414448,1751568641576,-460.0,0.00016712,2]
[369414450,1751568641585,-460.0,0.00016712,2]
[369414452,1751568641594,-460.0,0.00016712,2]
[369414453,1751568641603,-460.0,0.00016712,2]
[369414455,1751568641613,-460.0,0.00016712,2]
[369414457,1751568641623,-460.0,0.00016712,2]
[369414459,1751568641632,-562.13,0.00016712,2]
[369414461,1751568641641,-1121.9,0.00016712,2]
[369414462,1751568641650,-671.58,0.00016712,2]
[369414464,1751568641659,-460.0,0.00016712,2]
[369414466,1751568641669,-460.0,0.00016712,2]
[369414468,1751568641680,-460.0,0.00016712,2]
[369414470,1751568641690,-460.0,0.00016712,2]
[369414472,1751568641699,-460.0,0.00016712,2]
[369414473,1751568641709,-460.0,0.00016712,2]
[369414475,1751568641718,-460.0,0.00016712,2]
[369414477,1751568641728,-549.22,0.00016712,2]
[369414479,1751568641737,-460.0,0.00016712,2]
[369414481,1751568641746,-460.0,0.00016712,2]
[369414482,1751568641756,-460.0,0.00016712,2]
[369414484,1751568641765,-976.22,0.00016712,2]
[369414486,1751568641775,-460.0,0.00016712,2]
[369414488,1751568641784,-460.0,0.00016712,2]
[369414490,1751568641793,-620.74,0.00016712,2]
[369414491,1751568641803,-1005.25,0.00016712,2]
[369414493,1751568641812,-460.0,0.00016712,2]
[369414495,1751568641821,-460.0,0.00016712,2]
[369414497,1751568641830,-460.0,0.00016712,2]
[369414498,1751568641840,-2572.74,0.00016712,2]
[369414500,1751568641849,-460.0,0.00016712,2]
[369414502,1751568641859,-460.0,0.00016712,2]
[369414504,1751568641868,-460.0,0.00016712,2]
[369414506,1751568641877,-460.0,0.00016712,2]
[369414508,1751568641886,-460.0,0.00016712,2]
[369414509,1751568641895,-460.0,0.00016986,2]
[369414511,1751568641905,-460.0,0.00016986,2]
[369414513,1751568641915,-507.91,0.00016986,2]
[369414515,1751568641924,-562.870575,0.00016986,2]
[369414517,1751568641933,-460.0,0.00016986,2]
[369414519,1751568641942,-484.9,0.00016986,2]
[369414520,1751568641951,-577.84,0.00016986,2]
[369414522,1751568641961,-460.0,0.00016986,2]
[369414524,1751568641970,-460.0,0.00016986,2]
[369414526,1751568641979,-579.32,0.00016986,2]
[369414528,1751568641989,-460.0,0.00016986,2]
[369414530,1751568641998,-460.0,0.00016986,2]
[369414531,1751568642007,-460.0,0.00016986,2]
[369414533,1751568642016,-460.0,0.00016986,2]
[369414535,1751568642027,-460.0,0.00016986,2]
[369414537,1751568642035,-460.0,0.00016986,2]
[369414539,1751568642045,-460.0,0.00016986,2]
[369414541,1751568642054,-460.0,0.00016986,2]
[369414542,1751568642063,-460.0,0.00016986,2]
[369414544,1751568642073,-460.0,0.00016986,2]
[369414546,1751568642082,-460.0,0.00016986,2]
[369414548,1751568642099,-460.0,0.00016986,2]
[369414550,1751568642117,-26.14566005,0.00016986,2]
[369414561,1751568642232,-433.85433995,0.00016986,2]
[369414563,1751568642242,-524.86695751,0.00016986,2]
[369414565,1751568642251,-665.21,0.00016986,2]
[369414566,1751568642261,-460.0,0.00016986,2]
[369414568,1751568642271,-1733.49,0.00016986,2]
[369414570,1751568642280,-1778.48,0.00016986,2]
[369414572,1751568642290,-460.0,0.00016986,2]
[369414574,1751568642300,-460.0,0.00016986,2]
[369414576,1751568642309,-460.0,0.00016986,2]
[369414577,1751568642318,-460.0,0.00016986,2]
[369414579,1751568642329,-460.0,0.00016986,2]
[369414581,1751568642338,-460.0,0.00016986,2]
[369414583,1751568642348,-460.0,0.00016986,2]
[369414585,1751568642357,-44.13517025,0.00016986,2]
[369414587,1751568642368,-415.86482975,0.00016986,2]
[369414589,1751568642378,-583.06,0.00016986,2]
[369414591,1751568642387,-460.0,0.00016986,2]
[369414592,1751568642398,-82.88880245,0.00016986,2]
[369414595,1751568642410,-377.11119755,0.00016986,2]
[369414596,1751568642419,-440.80880495,0.00016986,2]
[369414598,1751568642431,-1272.19119505,0.00016986,2]
[369414600,1751568642440,-236.51636333,0.00016986,2]
[369414602,1751568642451,-223.48363667,0.00016986,2]
[369414604,1751568642461,-1238.44,0.00016986,2]
[369414606,1751568642470,-164.05406319,0.00016986,2]
[369414608,1751568642479,-460.0,0.00016986,2]
[369414609,1751568642488,-305.2,0.00016986,2]
[369414611,1751568642497,-460.0,0.00016986,2]
[369414613,1751568642507,-1617.81,0.00016986,2]
[369414615,1751568642516,-460.0,0.00016986,2]
[369414617,1751568642526,-460.0,0.00016986,2]
[369414618,1751568642535,-2197.05,0.00016986,2]
[369414620,1751568642544,-460.0,0.00016986,2]
[369414622,1751568642553,-98.61473756,0.00016986,2]
[369414624,1751568642565,-361.38526244,0.00016986,2]
[369414626,1751568642574,-206.54634886,0.00016986,2]
[369414628,1751568642586,-253.45365114,0.00016986,2]
[369414630,1751568642596,-460.0,0.00016986,2]
[369414632,1751568642606,-963.57,0.00016986,2]
[369414633,1751568642616,-460.0,0.00016986,2]
[369414635,1751568642625,-2407.78,0.00016986,2]
[369414637,1751568642635,-529.14,0.00016986,2]
[369414640,1751568642645,-460.0,0.00016986,2]
[369414643,1751568642654,-460.0,0.00016986,2]
[369414645,1751568642664,-460.0,0.00016986,2]
[369414647,1751568642673,-460.0,0.00016986,2]
[369414649,1751568642686,-460.0,0.00016986,2]
[369414651,1751568642695,-562.13,0.00016986,2]
[369414653,1751568642704,-1121.9,0.00016986,2]
[369414654,1751568642713,-671.58,0.00016986,2]
[369414656,1751568642726,-460.0,0.00016986,2]
[369414658,1751568642736,-460.0,0.00016986,2]
[369414660,1751568642745,-272.10242913,0.00016986,2]
[369414663,1751568642755,-460.0,0.00016986,2]
[369414665,1751568642764,-460.0,0.00016986,2]
[369414666,1751568642773,-460.0,0.00016986,2]
[369414668,1751568642783,-549.22,0.00016986,2]
[369414670,1751568642791,-460.0,0.00016986,2]
[369414672,1751568642801,-460.0,0.00016986,2]
[369414674,1751568642810,-306.18649124,0.00016986,2]
[369414683,1751568642897,-151.0,0.00016428,2]
[369414685,1751568642906,-151.0,0.00016428,2]
[369414687,1751568642915,-151.0,0.00016428,2]
[369414689,1751568642924,-151.0,0.00016428,2]
[369414691,1751568642933,-460.0,0.00016438,2]
[369414692,1751568642943,-460.0,0.00016712,2]
[369414694,1751568642952,-670.03350876,0.00016986,2]
[369414696,1751568642961,-460.0,0.00016986,2]
[369414698,1751568642970,-460.0,0.00016986,2]
[369414700,1751568642979,-620.74,0.00016986,2]
[369414701,1751568642988,-927.82997129,0.00016986,2]
[369414703,1751568643000,-77.42002871,0.00016986,2]
[369414705,1751568643010,-506.75451664,0.00016986,2]
[369414707,1751568643019,-335.82545465,0.00016986,2]
[369414709,1751568643030,-2236.91454535,0.00016986,2]
[369414711,1751568643040,-460.0,0.00016986,2]
[369414713,1751568643049,-460.0,0.00016986,2]
[369414715,1751568643058,-285.89751404,0.00016986,2]
[369414716,1751568643067,-460.0,0.00016986,2]
[369414718,1751568643076,-460.0,0.00016986,2]
[369414720,1751568643085,-460.0,0.00016986,2]
[369414722,1751568643094,-151.0,0.00017012,2]
[369414724,1751568643103,-151.0,0.00017039,2]
[369414726,1751568643112,-151.0,0.00017067,2]
[369414727,1751568643121,-500.0,0.00017067,2]
[369414729,1751568643131,-500.0,0.00017067,2]
[369414731,1751568643140,-245.0,0.00017067,2]
[369414733,1751568643149,-164.04737496,0.00017067,2]
[369414735,1751568643158,-245.0,0.00017067,2]
[369414737,1751568643167,-245.0,0.00017067,2]
[369414738,1751568643176,-500.0,0.00017094,2]
[369414740,1751568643186,-500.0,0.00017094,2]
[369414742,1751568643195,-500.0,0.00017114,2]
[369414744,1751568643204,-500.0,0.00017114,2]
[369414746,1751568643213,-500.0,0.00017122,2]
[369414748,1751568643222,-500.0,0.00017122,2]
[369414749,1751568643231,-500.0,0.00017133,2]
[369414751,1751568643240,-500.0,0.00017133,2]
[369414753,1751568643249,-502.2040564,0.00017133,2]
[369414755,1751568643258,-460.0,0.0001726,2]
[369414756,1751568643266,-237.1,0.0001726,2]
[369414758,1751568643275,-507.91,0.0001726,2]
[369414760,1751568643285,-460.0,0.0001726,2]
[369414762,1751568643294,-460.0,0.0001726,2]
[369414764,1751568643303,-460.0,0.0001726,2]
[369414766,1751568643313,-460.0,0.0001726,2]
[369414768,1751568643322,-460.0,0.0001726,2]
[369414769,1751568643332,-556.77,0.0001726,2]
[369414772,1751568643342,-340.51930828,0.0001726,2]
[369414775,1751568643351,-472.56,0.0001726,2]
[369414778,1751568643361,-174.88,0.0001726,2]
[369414781,1751568643370,-213.69126395,0.0001726,2]
[369414784,1751568643379,-460.0,0.0001726,2]
[369414786,1751568643388,-460.0,0.0001726,2]
[369414789,1751568643397,-535.01,0.0001726,2]
[369414792,1751568643407,-460.0,0.0001726,2]
[369414794,1751568643416,-460.0,0.0001726,2]
[369414796,1751568643425,-665.21,0.0001726,2]
[369414797,1751568643434,-460.0,0.0001726,2]
[369414812,1751568643586,-1733.49,0.0001726,2]
[369414814,1751568643596,-1778.48,0.0001726,2]
[369414816,1751568643605,-494.35,0.0001726,2]
[369414818,1751568643615,-460.0,0.0001726,2]
[369414820,1751568643624,-460.0,0.0001726,2]
[369414822,1751568643634,-460.0,0.0001726,2]
[369414824,1751568643643,-460.0,0.0001726,2]
[369414825,1751568643653,-460.0,0.0001726,2]
[369414827,1751568643662,-460.0,0.0001726,2]
[369414829,1751568643671,-583.06,0.0001726,2]
[369414831,1751568643682,-381.01646073,0.0001726,2]
[369414833,1751568643692,-1713.0,0.0001726,2]
[369414834,1751568643701,-1238.44,0.0001726,2]
[369414836,1751568643710,-460.0,0.0001726,2]
[369414838,1751568643719,-460.0,0.0001726,2]
[369414840,1751568643730,-1617.81,0.0001726,2]
[369414842,1751568643739,-460.0,0.0001726,2]
[369414844,1751568643748,-460.0,0.0001726,2]
[369414845,1751568643759,-2197.05,0.0001726,2]
[369414847,1751568643769,-460.0,0.0001726,2]
[369414849,1751568643778,-460.0,0.0001726,2]
[369414851,1751568643787,-460.0,0.0001726,2]
[369414853,1751568643796,-963.57,0.0001726,2]
[369414855,1751568643805,-460.0,0.0001726,2]
[369414856,1751568643814,-2407.78,0.0001726,2]
[369414858,1751568643823,-529.14,0.0001726,2]
[369414860,1751568643832,-460.0,0.0001726,2]
[369414862,1751568643841,-460.0,0.0001726,2]
[369414864,1751568643850,-460.0,0.0001726,2]
[369414866,1751568643860,-460.0,0.0001726,2]
[369414867,1751568643870,-460.0,0.0001726,2]
[369414869,1751568643879,-562.13,0.0001726,2]
[369414871,1751568643888,-1121.9,0.0001726,2]
[369414873,1751568643897,-638.84275817,0.0001726,2]
[369414879,1751568643957,-151.0,0.00016428,2]
[369414881,1751568643967,-460.0,0.00016438,2]
[369414883,1751568643976,-32.73724183,0.0001726,2]
[369414885,1751568643985,-460.0,0.0001726,2]
[369414886,1751568643994,-460.0,0.0001726,2]
[369414888,1751568644004,-161.24,0.0001726,2]
[369414890,1751568644013,-460.0,0.0001726,2]
[369414892,1751568644023,-549.22,0.0001726,2]
[369414894,1751568644031,-460.0,0.0001726,2]
[369414896,1751568644041,-460.0,0.0001726,2]
[369414897,1751568644050,-976.22,0.0001726,2]
[369414899,1751568644060,-460.0,0.0001726,2]
[369414901,1751568644069,-460.0,0.0001726,2]
[369414903,1751568644078,-620.74,0.0001726,2]
[369414905,1751568644087,-1005.25,0.0001726,2]
[369414907,1751568644097,-460.0,0.0001726,2]
[369414909,1751568644109,-2572.74,0.0001726,2]
[369414911,1751568644118,-460.0,0.0001726,2]
[369414912,1751568644127,-460.0,0.0001726,2]
[369414914,1751568644136,-2516.95027369,0.00017434,2]
[369414916,1751568644145,-1030.20333325,0.00017515,2]
[369414918,1751568644154,-2460.83097615,0.00017534,2]
[369414920,1751568644164,-4642.52096105,0.00017534,2]
[369414921,1751568644173,-460.0,0.00017534,2]
[369414922,1751568644182,-507.91,0.00017534,2]
[369414923,1751568644196,-460.0,0.00017534,2]
[369414924,1751568644206,-460.0,0.00017534,2]
[369414925,1751568644217,-460.0,0.00017534,2]
[369414926,1751568644226,-543.08406124,0.00017534,2]
[369414927,1751568644235,-460.0,0.00017534,2]
[369414928,1751568644244,-460.0,0.00017534,2]
[369414929,1751568644253,-460.0,0.00017534,2]
[369414930,1751568644262,-665.21,0.00017534,2]
[369414931,1751568644272,-460.0,0.00017534,2]
[369414932,1751568644281,-1733.49,0.00017534,2]
[369414933,1751568644290,-1778.48,0.00017534,2]
[369414934,1751568644300,-460.0,0.00017534,2]
[369414935,1751568644312,-460.0,0.00017534,2]
[369414936,1751568644321,-460.0,0.00017534,2]
[369414937,1751568644331,-460.0,0.00017534,2]
[369414938,1751568644340,-583.06,0.00017534,2]
[369414939,1751568644349,-1713.0,0.00017534,2]
[369414940,1751568644358,-1238.44,0.00017534,2]
[369414941,1751568644367,-460.0,0.00017534,2]
[369414942,1751568644377,-460.0,0.00017534,2]
[369414943,1751568644387,-1617.81,0.00017534,2]
[369414944,1751568644396,-460.0,0.00017534,2]
[369414945,1751568644405,-2197.05,0.00017534,2]
[369414946,1751568644414,-460.0,0.00017534,2]
[369414947,1751568644423,-460.0,0.00017534,2]
[369414948,1751568644433,-460.0,0.00017534,2]
[369414949,1751568644442,-963.57,0.00017534,2]
[369414950,1751568644451,-2407.78,0.00017534,2]
[369414951,1751568644460,-529.14,0.00017534,2]
[369414952,1751568644470,-151.0,0.00017534,2]
[369414953,1751568644479,-151.0,0.00017534,2]
[369414954,1751568644489,-460.0,0.00017534,2]
[369414955,1751568644497,-460.0,0.00017534,2]
[369414956,1751568644506,-460.0,0.00017534,2]
[369414957,1751568644516,-562.13,0.00017534,2]
[369414958,1751568644526,-1121.9,0.00017534,2]
[369414959,1751568644535,-671.58,0.00017534,2]
[369414960,1751568644545,-460.0,0.00017534,2]
[369414961,1751568644554,-460.0,0.00017534,2]
[369414962,1751568644564,-549.22,0.00017534,2]
[369414963,1751568644573,-460.0,0.00017534,2]
[369414964,1751568644582,-976.22,0.00017534,2]
[369414965,1751568644592,-460.0,0.00017534,2]
[369414966,1751568644601,-151.0,0.00017534,2]
[369414967,1751568644611,-460.0,0.00017534,2]
[369414968,1751568644620,-460.0,0.00017534,2]
[369414969,1751568644629,-620.74,0.00017534,2]
[369414970,1751568644639,-1005.25,0.00017534,2]
[369414971,1751568644648,-151.0,0.00017534,2]
[369414972,1751568644658,-543.40396799,0.00017534,2]
[369414973,1751568644667,-2572.74,0.00017534,2]
[369414974,1751568644676,-460.0,0.00017534,2]
[369414975,1751568644688,-460.0,0.00017534,2]
[369414976,1751568644698,-151.0,0.00017571,2]
[369414978,1751568644707,-151.0,0.00017571,2]
[369414979,1751568644716,-2801.41029573,0.00017576,2]
[369414981,1751568644726,-1000.0,0.00017662,2]
[369414982,1751568644737,-1000.0,0.00017662,2]
[369414984,1751568644746,-500.0,0.00017681,2]
[369414985,1751568644757,-151.0,0.00017807,2]
[369414986,1751568644766,-368.07,0.00017808,2]
[369414988,1751568644775,-507.91,0.00017808,2]
[369414989,1751568644784,-460.0,0.00017808,2]
[369414990,1751568644794,-264.262535,0.00017808,2]
[369414992,1751568644804,-460.0,0.00017808,2]
[369414993,1751568644812,-460.0,0.00017808,2]
[369414995,1751568644822,-665.21,0.00017808,2]
[369414997,1751568644831,-460.0,0.00017808,2]
[369414999,1751568644840,-1733.49,0.00017808,2]
[369415001,1751568644849,-151.0,0.00017808,2]
[369415003,1751568644859,-1778.48,0.00017808,2]
[369415005,1751568644869,-151.0,0.00017808,2]
[369415007,1751568644878,-151.0,0.00017808,2]
[369415009,1751568644887,-185.94,0.00017808,2]
[369415011,1751568644897,-460.0,0.00017808,2]
[369415013,1751568644906,-460.0,0.00017808,2]
[369415015,1751568644915,-460.0,0.00017808,2]
[369415017,1751568644925,-583.06,0.00017808,2]
[369415019,1751568644934,-1713.0,0.00017808,2]
[369415021,1751568644943,-1238.44,0.00017808,2]